Cogmind - Beta 16 @@@ ROGUE MODE // 2025.10.22 @ 20:56:45 Player: star Result: Destroyed by Shrapnel Trap Performance ------------- Evolutions (0) 0 Regions Visited (2) 400 Robots Destroyed (18) 90 Value Destroyed (511) 511 Prototype IDs (0) 0 Alien Tech Used (0) 0 Bonus (0) 0 TOTAL SCORE: 1001 Bonus ------- None Cogmind --------- Core Integrity 0/250 Matter 294/300 Energy 196/200 System Corruption 0% Temperature Cool (2) Movement Treading (160) Location -10/Subcaves Parts ------- > --- POWER (1) -------- Subdweller Power Source > --- PROPULSION (2) --- Light Treads Light Treads > --- UTILITY (2) ------ Large Storage Unit Targeting Computer > --- WEAPON (2) ------- Subdweller Beam Cannon Battle Cannon > --- INVENTORY (15) --- Light Treads Light Treads Light Treads Light Treads Wheel High-capacity Matter Pod (200) Targeting Computer Targeting Computer Makeshift Kinetic Plating Scrap Shield EM Pulse Gun Assault Rifle Scrap Shield Fragment (29) Peak State ------------ > --- POWER ------------ Subdweller Power Source > --- PROPULSION ------- Light Treads Light Treads > --- UTILITY ---------- Large Storage Unit Targeting Computer > --- WEAPON ----------- Subdweller Beam Cannon Flamer > --- INVENTORY -------- Light Treads Light Treads Light Treads Light Treads Wheel High-capacity Matter Pod Targeting Computer Targeting Computer Makeshift Kinetic Plating Scrap Shield EM Pulse Gun Assault Rifle Scrap Shield Fragment [Rating: 12] Favorites ----------- Power Light Ion Engine Engine Light Ion Engine Propulsion Light Treads Treads Light Treads Wheel Wheel Utility Large Storage Unit Storage Large Storage Unit Processor Targeting Computer Weapon Subdweller Beam Cannon Energy Gun EM Pulse Gun Energy Cannon Subdweller Beam Cannon Ballistic Gun Battle Rifle Ballistic Cannon Battle Cannon Special Weapon Flamer Build | -11 -10 -10 ------- Run | Yrd Mat Sub Slots Evolved . | . . . Power . | . . . Propulsion . | . . . Utility . | . . . Weapon . | . . . Parts Attached 20 | 7 6 7 Power 3 | 1 1 1 Engine 3 | 1 1 1 Core . | . . . Reactor . | . . . Propulsion 5 | 3 . 2 Treads 3 | 1 . 2 Leg . | . . . Wheel 2 | 2 . . Hover . | . . . Flight . | . . . Utility 4 | 1 3 . Device . | . . . Storage 3 | 1 2 . Processor 1 | . 1 . Hackware . | . . . Protection . | . . . Artifact . | . . . Weapon 8 | 2 2 4 Energy Gun 3 | 2 1 . Energy Cannon 1 | . . 1 Ballistic Gun 2 | . 1 1 Ballistic Cannon 1 | . . 1 Launcher . | . . . Special Weapon 1 | . . 1 Impact Weapon . | . . . Slashing Weapon . | . . . Piercing Weapon . | . . . Special Melee Weapon . | . . . Unidentified Prototypes . | . . . Parts Lost 4 | . 2 2 Power 2 | . 1 1 Propulsion . | . . . Utility . | . . . Weapon 2 | . 1 1 Highest Loss Streak 1 | . 1 1 To Critical Strikes . | . . . Average Backups 11 | 1 9 12 Power . | . . . Propulsion 4 | 1 4 4 Utility 4 | . 3 5 Weapon 2 | . 1 2 Tool/Special . | . . . Unused Backups 8 | . . 8 Power . | . . . Propulsion 3 | . . 3 Utility 5 | . . 5 Weapon . | . . . Tool/Special . | . . . Average Slot Usage (%) 93 | . 93 93 Engine 9 | . 13 8 Treads 18 | . . 24 Wheel 9 | . 28 3 Storage 14 | . 14 14 Processor 12 | . 8 14 Energy Gun 6 | . 22 1 Energy Cannon 9 | . . 12 Ballistic Gun 9 | . 5 10 Ballistic Cannon 1 | . . 1 Peak Build Rating 12 | 6 8 12 Average Rating 9 | 3 7 10 On Entrance 4 | . 6 8 Avg Prop Armor Cover (%) . | . . . Naked Turns . | . . . Heaviest Build 37 | 12 37 36 Greatest Support 40 | 20 20 40 Greatest Overweight (x) 1 | . 1 1 Average Overweight (x) . | . . . Largest Inventory Capacity 15 | 8 15 15 Average Capacity 14 | 7 14 15 Most Carried 15 | 4 12 15 Average Carried 12 | 1 9 14 Final Capacity 15 | 8 15 15 Final Carried 14 | 4 11 14 Class Distribution -------------------- 100% | Mutant Dominant Class ---------------- Mutant | -10/Materials Mutant | -10/Subcaves Resources | -11 -10 -10 ----------- Run | Yrd Mat Sub Matter Collected 741 | 175 127 439 Remotely . | . . . Salvage Created 890 | . 274 616 Parts 62 | . 13 49 Haulers Intercepted 1 | . 1 . Recyclers Shooed . | . . . Parts Field Recycled . | . . . Retrieved Matter . | . . . Parts Self-Destructed 18 | . . 18 Prevented . | . . . Parts Restored . | . . . Kills | -11 -10 -10 ------- Run | Yrd Mat Sub Combat Hostiles Destroyed 16 | . 4 12 Guns 9 | . 3 6 Cannons 6 | . . 6 AOE 1 | . 1 . Classes Destroyed 7 | . 3 4 Worker 1 | . 1 . Hauler 1 | . 1 . Swarmer 4 | . . 4 Grunt 5 | . 4 1 Sentry 1 | . . 1 Cobbler 1 | . . 1 Subdweller 6 | . . 6 Best Kill Streak 6 | . 6 4 Combat Bots Only 4 | . 4 4 Max Kills in Single Turn 2 | . 2 2 Gunslinging 1 | . . 1 Exploded 1 | . 1 . Melee . | . . . Uniques/NPCs Destroyed . | . . . Combat | -11 -10 -10 -------- Run | Yrd Mat Sub Hostile Shots Fired 60 | . 9 51 Missed 13 | . 2 11 Hits 47 | . 7 40 Projectile 47 | . 7 40 Critical Strikes 3 | . . 3 Damage Taken 971 | . 198 773 Core 264 | . 51 213 Absorbed by Shields . | . . . Core Remaining (%) 100 | 100 . . Volleys Fired 55 | . 11 44 Largest 2 | . 2 2 Hottest 180 | . 80 180 Shots Fired 106 | . 21 85 Gun 57 | . 21 36 Cannon 45 | . . 45 Launcher . | . . . Special 4 | . . 4 Kinetic 37 | . . 37 Thermal 37 | . . 37 Explosive . | . . . Electromagnetic 32 | . 21 11 Robot Hit Streak 14 | . 6 14 Robot Miss Streak 2 | . 2 2 Penetration Max . | . . . Secondary Targets 3 | . 1 2 Max Gunslinging Chain 1 | . 1 1 Shots Hit Robots 56 | . 15 41 Core Hits 28 | . 7 21 Critical Kills . | . . . Critical Parts Destroyed . | . . . Critical Strikes 1 | . 1 . Corrupt 1 | . 1 . Melee Attacks . | . . . Impact . | . . . Slashing . | . . . Piercing . | . . . Sneak Attacks . | . . . Combat Hostiles . | . . . Follow-up Attacks . | . . . Damage Inflicted 1154 | . 378 776 Guns 473 | . 208 265 Cannons 488 | . . 488 Explosions 150 | . 150 . Melee . | . . . Ramming 23 | . 20 3 Kinetic 202 | . . 202 Thermal 632 | . 150 482 Explosive . | . . . Electromagnetic 297 | . 208 89 Impact . | . . . Slashing . | . . . Piercing . | . . . Highest Corruption . | . . . Average Corruption . | . . . Corruption Purged . | . . . Corruption Blocked . | . . . Overload Shots . | . . . Overflow Damage 2 | . 2 . Projectiles . | . . . Explosions 2 | . 2 . Melee . | . . . Knockbacks 1 | . 1 . Impact 1 | . 1 . Kinetic . | . . . Secondary . | . . . Self-Inflicted Damage 89 | . 89 . Shots 2 | . 2 . Rammed 2 | . 1 1 Targets Rammed 2 | . 1 1 Kicked . | . . . Crushed . | . . . Highest Temperature 78 | . 78 48 Average Temperature 28 | . 39 20 Received Heat Transfer 228 | . 42 186 Siege Activations . | . . . Martial Activations . | . . . Shielding Activations . | . . . Robots Disrupted . | . . . Combat Hostiles . | . . . Robots Corrupted . | . . . Combat Hostiles . | . . . Parts Fried . | . . . Impact Corruptions . | . . . Robots Melted . | . . . Combat Hostiles . | . . . Parts Melted . | . . . Heat Transferred 839 | . 50 789 Parts Sabotaged . | . . . Parts Stolen . | . . . Parts Stripped . | . . . Power Chain Reactions 2 | . 2 . Alert | -11 -10 -10 ------- Run | Yrd Mat Sub Maximum Alert Level . | . . . Low Security (%) 100 | 100 100 . Level 1 . | . . . Level 2 . | . . . Level 3 . | . . . Level 4 . | . . . Level 5 . | . . . High Security . | . . . Max Security . | . . . Peak Influence 94 | . 94 . Initial . | . . . Average 22 | . 26 . Influence Increases 291 | . 141 150 Destroy 0b10 Robot/C 200 | . 80 120 Destroy 0b10 Robot/NC 10 | . 10 . Destroy Leader 12 | . 12 . Destroy Structure 9 | . 9 . Partial Spotted 15 | . 15 . Lose Combat Pursuer 45 | . 15 30 Influence Decreases 291 | . 141 150 Time Decay 271 | . 121 150 Lost Part 20 | . 20 . Squads Dispatched . | . . . Investigation . | . . . Extermination . | . . . Reinforcement . | . . . Assault . | . . . Garrison . | . . . Intercept . | . . . Searches Triggered . | . . . Construction Impeded . | . . . Haulers Reinforced . | . . . Active Scanning Responses . | . . . Cargo Convoy Interrupts . | . . . Stealth | -11 -10 -10 --------- Run | Yrd Mat Sub Distress Signals 1 | . 1 . Communications Jammed . | . . . Distress Signals . | . . . Times Spotted 19 | . 6 13 Peak Tracking Total 6 | . 5 6 Tactical Retreats 2 | . 1 1 Traps | -11 -10 -10 ------- Run | Yrd Mat Sub Traps Triggered 4 | . 1 3 Indirectly . | . . . Trap Hack Attempts . | . . . Triggered . | . . . Disarmed . | . . . Reprogrammed . | . . . Reused . | . . . Traps Extracted . | . . . Installed 2 | . . 2 Triggered . | . . . Most Traps Carried 2 | . . 2 Machines | -11 -10 -10 ---------- Run | Yrd Mat Sub Machines Disabled . | . . . Max in Single Turn . | . . . Machines Repaired . | . . . Machines Dismantled . | . . . Machines Sabotaged . | . . . Overloaded Fab Kills . | . . . Hacking | -11 -10 -10 --------- Run | Yrd Mat Sub Machines Accessed . | . . . Terminals . | . . . Fabricators . | . . . Repair Stations . | . . . Recycling Units . | . . . Scanalyzers . | . . . Garrison Access . | . . . Total Hacks . | . . . Successful . | . . . Failed . | . . . Catastrophic . | . . . Database Lockouts . | . . . Manual . | . . . Terminals . | . . . Fabricators . | . . . Repair Stations . | . . . Recycling Units . | . . . Scanalyzers . | . . . Garrison Access . | . . . Terminal Hacks . | . . . Fabricator Hacks . | . . . Repair Station Hacks . | . . . Recycling Unit Hacks . | . . . Scanalyzer . | . . . Garrison Access Hacks . | . . . Unauthorized Hacks . | . . . Terminals . | . . . Fabricators . | . . . Repair Stations . | . . . Recycling Units . | . . . Scanalyzers . | . . . Garrison Access . | . . . Data Cores Recovered . | . . . Used . | . . . Hacking Detections . | . . . Full Trace Events . | . . . Feedback Events . | . . . Feedback Blocked . | . . . Robot Schematics Acquired . | . . . Robots Built . | . . . Authchips . | . . . Time . | . . . Total Robot Build Rating . | . . . Part Schematics Acquired . | . . . Parts Built . | . . . Authchips . | . . . Time . | . . . Total Part Build Rating . | . . . Part Studies Acquired . | . . . Parts Repaired . | . . . Time . | . . . Parts Recycled . | . . . Recycled Matter . | . . . Retrieved Matter . | . . . Retrieved Components . | . . . Parts Scanalyzed . | . . . Part Schematics Acquired . | . . . Parts Damaged . | . . . Bothacking | -11 -10 -10 ------------ Run | Yrd Mat Sub Used RIF Installer . | . . . Robots Hacked . | . . . Non-combat . | . . . Combat . | . . . Robot Hacks Applied . | . . . Relay Couplers Released . | . . . Fabnet Peak Effective % . | . . . Robots Rewired . | . . . Allies Hacked . | . . . Hacks Repelled . | . . . Allies | -11 -10 -10 -------- Run | Yrd Mat Sub Total Allies . | . . . Largest Group . | . . . Highest-Rated Group . | . . . Highest-Rated Ally . | . . . Total Orders . | . . . Ally Attacks . | . . . Total Damage . | . . . Kills . | . . . Allies Corrupted . | . . . Allies Melted . | . . . Intel | -11 -10 -10 ------- Run | Yrd Mat Sub Active Infowar (turns) . | . . . Robot Analysis Total . | . . . Derelict Logs Recovered . | . . . Drone Launches . | . . . Drone Recoveries . | . . . Exploration | -11 -10 -10 ------------- Run | Yrd Mat Sub Turns Passed 1790 | 62 438 1290 Spaces Moved 1009 | 53 237 719 Core 4 | 4 . . Treads 646 | 6 . 640 Legs . | . . . Wheels 359 | 43 237 79 Hover . | . . . Flight . | . . . Fastest Speed 50 | 50 80 95 Average Speed 135 | 86 93 152 Slowest Speed 240 | 160 95 240 Overloaded Moves . | . . . Propulsion Burnouts . | . . . Robots Hopped . | . . . Potential Cave-ins 7 | . . 7 Cave-ins Triggered . | . . . Exploration Rate (%) 28 | 3 43 40 Regions Visited 2 Branch Regions 1 Pre-discovered Areas . | . . . Known Exits Taken . | . . . Unknown Exits Taken 2 | 1 1 . Scrap Searched 4 | . . 4 Spaces Dug 9 | . . 9 Terrain Destroyed 23 | . 9 14 Melee . | . . . Projectile 14 | . . 14 AOE 9 | . 9 . Terrain Rammed . | . . . Walls Destroyed . | . . . Machines Disabled . | . . . Actions | -11 -10 -10 --------- Run | Yrd Mat Sub Total 1316 | 64 431 821 Wait 199 | . 168 31 Move 1007 | 52 236 719 Hop . | . . . Pick Up 20 | 4 7 9 Fast Attach 10 | 7 3 . Attach 5 | . 2 3 Detach 2 | . 2 . Swap 7 | 1 1 5 Drop 6 | . . 6 Fire 55 | . 11 44 Melee . | . . . Ram 1 | . 1 . Kick . | . . . Crush 1 | . . 1 Escape Stasis . | . . . Rewire 1 | . . 1 Trap 2 | . . 2 Miscellaneous . | . . . Route ------- -11/Scrapyard -10/Materials (discovered 4 exits: [*Mat x2] / [*Min] / [*Sub]) -10/Subcaves History --------- Turn | Location | Event 4 | -11/Scrapyard | Released all parts (1) 34 | -11/Scrapyard | Discovered new exit (range 15) 63 | -11/Scrapyard | Entered Materials 133 | -10/Materials | Discovered new exit (range 16) 268 | -10/Materials | Discovered new exit (range 12) 307 | -10/Materials | Build established: Mutant 336 | -10/Materials | Discovered new exit (range 16) 486 | -10/Materials | Discovered new exit (range 7) 501 | -10/Materials | Entered Subcaves 1059 | -10/Subcaves | Core integrity fell below 50% 1539 | -10/Subcaves | Core integrity fell below 20% 1605 | -10/Subcaves | Shifting Twisted Machinery released Battle Cannon 1791 | -10/Subcaves | Destroyed by Shrapnel Trap Last Messages --------------- 01532_ Critical hit (Burn: +37). 01534_ Sml. Laser fries itself beyond repair. 01537_ Slammed into Y-45 Defender. 01540_ Ion Engine fries itself beyond repair. 01542_ Y-45 Defender destroyed. 01546_ Acquired 6 matter. 01554_ Acquired 10 matter. 01594_ Acquired 8 matter. 01597_ Acquired 2 matter. Battle Cannon falls loose from the Twisted Machinery. 01612_ Acquired Battle Cannon. 01615_ Acquired 10 matter. 01617_ Acquired 1 matter. 01700_ The unstable cave ceiling collapses. 01782_ Sub. Beam Cannon shoots sparks and powers down. 01782_ L5-42B(R) destroyed. 01785_ Acquired 52 matter. 01787_ Acquired 1 matter. 01791_ Triggered Shrapnel Trap. 01791_ An expanding cloud of shrapnel blasts out in all directions. Map ----- +----------------------------------------------------+ | ????????????????# #????#### | | ????????????????# ##?????## | | ????????????????# #?????# | | ????????????????# ## ##????## | | ????????????????# #####?##### | | ????????????????# ####### | | ????????????????# | | ????????????????# # # ### | | ????????????????## ## ######?# | | ?????????????????#### ### #?###?## | | ????????????????????###?## ## ## | | ?????????????????????????# | | ?????????????????????????# | | ?????????????????????????## # ##### | | ???????????????????????????#####???## | | ????????????????????????????????????? | | ?????????????????????###????????????? | | ????????????????????## ######???????? | | ??????????????????### ##??????? | | ?????????????????# #????#?? | | ????########????# ##??? ## | | ????? <<<<< ###? #??? # | | ?????"< <<&<<### ??# #??? | | ?????<<<< < < ## #???# ##### | | ??????"<< < ## #????# ## ## | | ??????????# @ # #??????# | | ??????????###]## ######## | | ???????????# #" # ## # | | ???????????#&= &! | | ???????????# &&* ## | | ???????????# #"< ### | | ???????????#####< ### ##### | | ???????????????# #?# ##??## | | ???????????????## #?# ##???# | | ????????????????# # ####### ### | | ????????????????## ### ## #?### | | ?????????????????## ## ###?# | | ??????????????????### ## ### | | ????????????????????### #### # | | ??????????????????????##### ######## | | ??????????????????????????####??# ### | | ????????????????????????????????# | | ????????????????????????????????##### | | ????????????????????????????????????# | | ????????????????????????????????????? | | ????????????????????????????????????? | | ????????????????????????????????????? | | ????????????????????????????????????? | | ????????????????????????????????????? | | ????????????????????????????????????? | +----------------------------------------------------+ Best States ------------- Heat Dissipation 25 Energy Generation 15 Energy Capacity 200 Matter Stores 300 Matter Capacity 300 Sight Range 16 Terrain Scan Density 10 Evasion (%) 44 Targeting Accuracy 5 Recoil Reduction 2 Item Schematics ----------------- None Robot Schematics ------------------ None Fabricated ------------ Nothing Repaired ---------- Nothing Studied --------- None Alien Tech Used ----------------- None Achievements -------------- I Have A Map? Live, Flee, And Rebuild Challenges ------------ None Game ------ Seed BombConcussiveLeg Manual? 0 Play Time 00:16:57 Cumulative 157.9 hours Start 2025.10.22 @ 17:57:47 End 2025.10.22 @ 20:56:45 Sessions 1 Manual Loads 0 Difficulty Rogue Special Mode None Game No. 273 Rogue 273 Adventurer 0 Explorer 0 Win Type - Total 1 Types 1/0/0/0/0/0/0/0/0/0 Lore% 53 Gallery% 57 Achievement% 29 Wizard Run 0 Options --------- Layout 0 ASCII 0 Keyboard 1 Movement Numpad Keybinds 0 Fullscreen 2 Font 18/SmallcapsGlow Map View 76x50 Zoom Use 0% Tactical HUD 1 Map Filters NONE Filters NONE Steam 1 RUN: e5fce131-fd74-4ff9-8fcf-2ab0e3b95e50